[Event "GX Alekhine Torneio Interno 2023"]
[Site "GXA, Portugal"]
[Date "????.??.??"]
[Round "2.2"]
[White "Gorgojo Freijo, Diego"]
[Black "Dias, Antonio Alberto"]
[Result "1-0"]
[TimeControl "1h 30m +30s"]
[WhiteElo "1889"]
[BlackElo "1709"]

1. d4 {[%clk 01:30:51]} {[%emt 00:00:08]} Nf6 {[%clk 01:30:38]} {[%emt
00:00:23]} 2. Nf3 {[%clk 01:30:44]} {[%emt 00:00:37]} g6 {[%clk 01:30:12]}
{[%emt 00:00:56]} 3. Nbd2 {[%clk 01:29:28]} {[%emt 00:01:46]} Bg7 {[%clk
01:28:40]} {[%emt 00:02:02]} 4. e4 {[%clk 01:29:10]} {[%emt 00:00:48]} d6
{[%clk 01:28:43]} {[%emt 00:00:27]} 5. Bd3 {[%clk 01:27:43]} {[%emt 00:01:57]}
Nc6 {[%clk 01:28:07]} {[%emt 00:01:06]} 6. c3 {[%clk 01:27:32]} {[%emt
00:00:42]} e5 {[%clk 01:27:25]} {[%emt 00:01:11]} 7. O-O {[%clk 01:25:41]}
{[%emt 00:02:21]} O-O {[%clk 01:27:22]} {[%emt 00:00:33]} 8. Re1 {[%clk
01:22:50]} {[%emt 00:03:21]} Nh5 {[%clk 01:26:36]} {[%emt 00:01:16]} 9. Nb3
{[%clk 01:13:17]} {[%emt 00:10:03]} Kh8 {[%clk 01:24:10]} {[%emt 00:02:55]} 10.
Bb5 {[%clk 00:56:35]} {[%emt 00:17:13]} Ne7 {[%clk 01:17:49]} {[%emt 00:06:51]}
11. dxe5 {[%clk 00:54:45]} {[%emt 00:02:20]} dxe5 {[%clk 01:18:07]} {[%emt
00:00:11]} 12. Qxd8 {[%clk 00:54:09]} {[%emt 00:01:08]} Rxd8 {[%clk 01:18:29]}
{[%emt 00:00:08]} 13. Ng5 {[%clk 00:53:37]} {[%emt 00:01:01]} Kg8 {[%clk
01:14:21]} {[%emt 00:04:37]} 14. Bc4 {[%clk 00:51:29]} {[%emt 00:02:39]} Rf8
{[%clk 01:14:21]} {[%emt 00:00:31]} 15. Nc5 {[%clk 00:49:07]} {[%emt 00:02:52]}
b6 {[%clk 01:13:48]} {[%emt 00:01:03]} 16. Nd3 {[%clk 00:48:47]} {[%emt
00:00:49]} a5 {[%clk 01:11:38]} {[%emt 00:02:41]} 17. Nf3 {[%clk 00:48:04]}
{[%emt 00:01:13]} Nc6 {[%clk 01:09:53]} {[%emt 00:02:15]} 18. Bd5 {[%clk
00:46:39]} {[%emt 00:01:55]} Bb7 {[%clk 01:10:21]} {[%emt 00:00:03]} 19. Bxc6
{[%clk 00:40:31]} {[%emt 00:06:38]} Bxc6 {[%clk 01:10:17]} {[%emt 00:00:34]} 20.
Nfxe5 {[%clk 00:39:17]} {[%emt 00:01:44]} Bb5 {[%clk 01:09:39]} {[%emt
00:01:08]} 21. g4 {[%clk 00:36:44]} {[%emt 00:03:03]} Nf6 {[%clk 01:08:11]}
{[%emt 00:01:57]} 22. f3 {[%clk 00:36:59]} {[%emt 00:00:15]} Rad8 {[%clk
01:07:40]} {[%emt 00:01:01]} 23. Nf2 {[%clk 00:35:49]} {[%emt 00:01:40]} Nd7
{[%clk 01:05:48]} {[%emt 00:02:22]} 24. Nxd7 {[%clk 00:35:20]} {[%emt
00:00:59]} Rxd7 {[%clk 01:06:02]} {[%emt 00:00:16]} 25. Bf4 {[%clk 00:35:00]}
{[%emt 00:00:50]} f6 {[%clk 01:05:03]} {[%emt 00:01:29]} 26. Kg2 {[%clk
00:31:35]} {[%emt 00:03:56]} Rff7 {[%clk 01:04:23]} {[%emt 00:01:09]} 27. Rad1
{[%clk 00:31:34]} {[%emt 00:00:31]} Bf8 {[%clk 01:03:53]} {[%emt 00:00:59]} 28.
Rxd7 {[%clk 00:31:10]} {[%emt 00:00:54]} Rxd7 {[%clk 01:04:12]} {[%emt
00:00:11]} 29. Rd1 {[%clk 00:31:28]} {[%emt 00:00:12]} Bd6 {[%clk 01:04:26]}
{[%emt 00:00:15]} 30. Bxd6 {[%clk 00:30:58]} {[%emt 00:01:01]} cxd6 {[%clk
01:02:41]} {[%emt 00:02:15]} 31. Rd4 {[%clk 00:28:21]} {[%emt 00:03:07]} Kf7
{[%clk 01:01:16]} {[%emt 00:01:56]} 32. Nd1 {[%clk 00:28:19]} {[%emt 00:00:31]}
Bc6 {[%clk 01:00:43]} {[%emt 00:01:03]} 33. Ne3 {[%clk 00:26:52]} {[%emt
00:01:57]} b5 {[%clk 01:00:03]} {[%emt 00:01:11]} 34. a4 {[%clk 00:26:54]}
{[%emt 00:00:29]} Ke6 {[%clk 01:00:05]} {[%emt 00:00:27]} 35. axb5 {[%clk
00:26:37]} {[%emt 00:00:47]} Bxb5 {[%clk 01:00:20]} {[%emt 00:00:11]} 36. Rd5
{[%clk 00:25:25]} {[%emt 00:01:45]} Rb7 {[%clk 01:00:34]} {[%emt 00:00:16]} 37.
h4 {[%clk 00:24:10]} {[%emt 00:01:46]} a4 {[%clk 01:00:39]} {[%emt 00:00:25]}
38. Rd4 {[%clk 00:22:25]} {[%emt 00:02:14]} Bc6 {[%clk 00:56:52]} {[%emt
00:04:18]} 39. Rd2 {[%clk 00:19:47]} {[%emt 00:03:08]} Rb5 {[%clk 00:55:16]}
{[%emt 00:02:05]} 40. Nc2 {[%clk 00:16:09]} {[%emt 00:04:08]} Kd7 {[%clk
00:54:32]} {[%emt 00:01:14]} 41. Nb4 {[%clk 00:15:54]} {[%emt 00:00:45]} f5
{[%clk 00:53:40]} {[%emt 00:01:22]} 42. exf5 {[%clk 00:14:56]} {[%emt
00:01:28]} gxf5 {[%clk 00:53:31]} {[%emt 00:00:39]} 43. g5 {[%clk 00:14:05]}
{[%emt 00:01:21]} Rc5 {[%clk 00:51:24]} {[%emt 00:02:37]} 44. Rd4 {[%clk
00:10:46]} {[%emt 00:03:49]} a3 {[%clk 00:51:23]} {[%emt 00:00:31]} 45. bxa3
{[%clk 00:08:52]} {[%emt 00:02:24]} Rxc3 {[%clk 00:51:45]} {[%emt 00:00:07]} 46.
Nxc6 {[%clk 00:09:08]} {[%emt 00:00:15]} Rxc6 {[%clk 00:51:49]} {[%emt
00:00:26]} 47. Ra4 {[%clk 00:08:23]} {[%emt 00:01:15]} Rc7 {[%clk 00:51:10]}
{[%emt 00:01:09]} 48. Kg3 {[%clk 00:08:27]} {[%emt 00:00:26]} Ke6 {[%clk
00:51:35]} {[%emt 00:00:05]} 49. Kf4 {[%clk 00:08:36]} {[%emt 00:00:20]} Rb7
{[%clk 00:50:57]} {[%emt 00:01:09]} 50. Ra5 {[%clk 00:07:28]} {[%emt 00:01:38]}
Rc7 {[%clk 00:51:15]} {[%emt 00:00:12]} 51. Ra8 {[%clk 00:06:40]} {[%emt
00:01:19]} Rc4+ {[%clk 00:51:12]} {[%emt 00:00:33]} 52. Kg3 {[%clk 00:06:57]}
{[%emt 00:00:13]} d5 {[%clk 00:50:06]} {[%emt 00:01:35]} 53. Ra7 {[%clk
00:07:07]} {[%emt 00:00:20]} d4 {[%clk 00:50:21]} {[%emt 00:00:15]} 54. Kf2
{[%clk 00:05:54]} {[%emt 00:01:43]} d3 {[%clk 00:50:01]} {[%emt 00:00:50]} 55.
Rxh7 {[%clk 00:06:02]} {[%emt 00:00:22]} d2 {[%clk 00:50:29]} {[%emt 00:00:03]}
56. Ke2 {[%clk 00:06:09]} {[%emt 00:00:22]} Rd4 {[%clk 00:50:27]} {[%emt
00:00:33]} 57. Kd1 {[%clk 00:06:15]} {[%emt 00:00:24]} Rc4 {[%clk 00:49:09]}
{[%emt 00:01:02]} 1-0

[Event "GX Alekhine Torneio Interno 2023"]
[Site "GXA, Portugal"]
[Date "????.??.??"]
[Round "2.3"]
[White "Silva, Reinaldo Joao David Bat"]
[Black "Seia, Joao Manuel Barradas Aragao"]
[Result "1-0"]
[TimeControl "1h 30m +30s"]
[WhiteElo "1763"]
[BlackElo "1609"]

1. d4 {[%clk 01:30:57]} {[%emt 00:00:03]} d5 {[%clk 01:30:34]} {[%emt
00:00:26]} 2. g3 {[%clk 01:31:00]} {[%emt 00:00:26]} Nf6 {[%clk 01:30:16]}
{[%emt 00:00:50]} 3. Bg2 {[%clk 01:31:20]} {[%emt 00:00:09]} g6 {[%clk
01:29:44]} {[%emt 00:01:02]} 4. c4 {[%clk 01:31:04]} {[%emt 00:00:45]} c6
{[%clk 01:25:39]} {[%emt 00:04:35]} 5. Nc3 {[%clk 01:30:39]} {[%emt 00:00:54]}
Bg7 {[%clk 01:23:27]} {[%emt 00:02:43]} 6. cxd5 {[%clk 01:30:46]} {[%emt
00:00:23]} cxd5 {[%clk 01:23:22]} {[%emt 00:00:35]} 7. Qa4+ {[%clk 01:25:08]}
{[%emt 00:06:06]} Bd7 {[%clk 01:18:25]} {[%emt 00:05:28]} 8. Qb3 {[%clk
01:25:09]} {[%emt 00:00:29]} Bc6 {[%clk 01:18:17]} {[%emt 00:00:39]} 9. Nf3
{[%clk 01:23:22]} {[%emt 00:02:17]} O-O {[%clk 01:16:21]} {[%emt 00:02:26]} 10.
Ne5 {[%clk 01:22:01]} {[%emt 00:01:49]} e6 {[%clk 01:06:45]} {[%emt 00:10:06]}
11. O-O {[%clk 01:20:52]} {[%emt 00:01:39]} Nbd7 {[%clk 01:01:04]} {[%emt
00:06:11]} 12. Nxc6 {[%clk 01:07:15]} {[%emt 00:14:08]} bxc6 {[%clk 01:01:18]}
{[%emt 00:00:16]} 13. e3 {[%clk 00:59:37]} {[%emt 00:08:07]} c5 {[%clk
00:57:37]} {[%emt 00:04:11]} 14. Rd1 {[%clk 00:44:32]} {[%emt 00:15:35]} c4
{[%clk 00:53:41]} {[%emt 00:04:27]} 15. Qa3 {[%clk 00:44:05]} {[%emt 00:00:58]}
Nb6 {[%clk 00:44:26]} {[%emt 00:09:45]} 16. e4 {[%clk 00:40:44]} {[%emt
00:03:50]} h6 {[%clk 00:40:19]} {[%emt 00:04:37]} 17. b3 {[%clk 00:39:11]}
{[%emt 00:02:03]} Re8 {[%clk 00:36:51]} {[%emt 00:03:58]} 18. Qa6 {[%clk
00:26:59]} {[%emt 00:12:42]} Qc8 {[%clk 00:28:46]} {[%emt 00:08:35]} 19. Qxc8
{[%clk 00:24:41]} {[%emt 00:02:48]} Rexc8 {[%clk 00:28:30]} {[%emt 00:00:46]}
20. exd5 {[%clk 00:20:49]} {[%emt 00:04:22]} Nfxd5 {[%clk 00:22:50]} {[%emt
00:06:09]} 21. Nb5 {[%clk 00:15:22]} {[%emt 00:05:57]} a6 {[%clk 00:18:27]}
{[%emt 00:04:53]} 22. Nd6 {[%clk 00:14:12]} {[%emt 00:01:38]} Rc6 {[%clk
00:14:32]} {[%emt 00:04:27]} 23. bxc4 {[%clk 00:07:14]} {[%emt 00:07:28]} Nxc4
{[%clk 00:12:45]} {[%emt 00:02:17]} 24. Ne4 {[%clk 00:05:08]} {[%emt 00:02:36]}
Rac8 {[%clk 00:11:07]} {[%emt 00:02:09]} 25. Rb1 {[%clk 00:03:26]} {[%emt
00:02:12]} f5 {[%clk 00:07:51]} {[%emt 00:03:45]} 26. Nc5 {[%clk 00:01:56]}
{[%emt 00:02:01]} Bxd4 {[%clk 00:04:49]} {[%emt 00:03:32]} 27. Rxd4 {[%clk
00:02:13]} {[%emt 00:00:13]} Rxc5 {[%clk 00:04:59]} {[%emt 00:00:20]} 28. Bxh6
{[%clk 00:02:33]} {[%emt 00:00:10]} Nc3 {[%clk 00:03:33]} {[%emt 00:01:55]} 29.
Re1 {[%clk 00:02:41]} {[%emt 00:00:21]} e5 {[%clk 00:02:27]} {[%emt 00:01:36]}
30. Rd7 {[%clk 00:02:52]} {[%emt 00:00:19]} Nxa2 {[%clk 00:02:14]} {[%emt
00:00:42]} 31. Bd5+ {[%clk 00:03:05]} {[%emt 00:00:19]} Rxd5 {[%clk 00:00:53]}
{[%emt 00:01:52]} 32. Rxd5 {[%clk 00:03:33]} {[%emt 00:00:01]} Nc3 {[%clk
00:01:05]} {[%emt 00:00:18]} 33. Rd7 {[%clk 00:02:32]} {[%emt 00:01:31]} a5
{[%clk 00:01:25]} {[%emt 00:00:11]} 34. Bd2 {[%clk 00:02:44]} {[%emt 00:00:17]}
Ne4 {[%clk 00:01:24]} {[%emt 00:00:31]} 35. Bc1 {[%clk 00:02:42]} {[%emt
00:00:32]} Rb8 {[%clk 00:01:07]} {[%emt 00:00:47]} 36. f3 {[%clk 00:02:18]}
{[%emt 00:00:53]} Nf6 {[%clk 00:01:04]} {[%emt 00:00:35]} 37. Rc7 {[%clk
00:02:34]} {[%emt 00:00:14]} Rb4 {[%clk 00:01:10]} {[%emt 00:00:23]} 38. Rd1
{[%clk 00:02:10]} {[%emt 00:00:54]} Kf8 {[%clk 00:00:48]} {[%emt 00:00:52]} 39.
Rd8+ {[%clk 00:02:30]} {[%emt 00:00:10]} Ne8 {[%clk 00:00:37]} {[%emt
00:00:42]} 40. Rcc8 {[%clk 00:02:59]} {[%emt 00:00:01]} a4 {[%clk 00:00:49]}
{[%emt 00:00:18]} 41. Rxe8+ {[%clk 00:03:03]} {[%emt 00:00:27]} Kf7 {[%clk
00:01:08]} {[%emt 00:00:11]} 42. Bg5 {[%clk 00:03:12]} {[%emt 00:00:20]} Rb7
{[%clk 00:01:03]} {[%emt 00:00:34]} 43. Rf8+ {[%clk 00:03:23]} {[%emt
00:00:20]} Ke6 {[%clk 00:01:09]} {[%emt 00:00:23]} 44. Rxc4 {[%clk 00:03:48]}
{[%emt 00:00:05]} Rb1+ {[%clk 00:01:13]} {[%emt 00:00:26]} 45. Kg2 {[%clk
00:03:53]} {[%emt 00:00:25]} Rb2+ {[%clk 00:01:25]} {[%emt 00:00:18]} 46. Kh3
{[%clk 00:04:17]} {[%emt 00:00:06]} a3 {[%clk 00:01:32]} {[%emt 00:00:24]} 47.
Ra4 {[%clk 00:04:40]} {[%emt 00:00:07]} a2 {[%clk 00:01:13]} {[%emt 00:00:49]}
48. Rfa8 {[%clk 00:05:03]} {[%emt 00:00:07]} Kd5 {[%clk 00:01:21]} {[%emt
00:00:25]} 1-0

[Event "GX Alekhine Torneio Interno 2023"]
[Site "GXA, Portugal"]
[Date "????.??.??"]
[Round "2.4"]
[White "Vedor, Bernardo Marques"]
[Black "Aguiar, Carlos Alberto Branco"]
[Result "1-0"]
[TimeControl "1h 30m +30s"]
[WhiteElo "1650"]
[BlackElo "1731"]

1. e4 {[%clk 01:27:12]} {[%emt 00:03:47]} c5 {[%clk 01:30:45]} {[%emt
00:00:16]} 2. Nf3 {[%clk 01:27:34]} {[%emt 00:00:08]} d6 {[%clk 01:31:06]}
{[%emt 00:00:10]} 3. d4 {[%clk 01:27:55]} {[%emt 00:00:08]} cxd4 {[%clk
01:31:29]} {[%emt 00:00:08]} 4. Nxd4 {[%clk 01:28:07]} {[%emt 00:00:20]} Nf6
{[%clk 01:31:47]} {[%emt 00:00:09]} 5. Nc3 {[%clk 01:28:29]} {[%emt 00:00:06]}
a6 {[%clk 01:32:10]} {[%emt 00:00:09]} 6. f3 {[%clk 01:28:17]} {[%emt
00:00:41]} e5 {[%clk 01:32:33]} {[%emt 00:00:08]} 7. Nb3 {[%clk 01:28:34]}
{[%emt 00:00:12]} Be6 {[%clk 01:32:48]} {[%emt 00:00:16]} 8. Be3 {[%clk
01:28:31]} {[%emt 00:00:33]} Be7 {[%clk 01:33:06]} {[%emt 00:00:12]} 9. Qd2
{[%clk 01:28:28]} {[%emt 00:00:33]} Qc7 {[%clk 01:33:27]} {[%emt 00:00:10]} 10.
O-O-O {[%clk 01:26:43]} {[%emt 00:02:15]} b5 {[%clk 01:32:52]} {[%emt
00:01:06]} 11. Kb1 {[%clk 01:23:32]} {[%emt 00:03:40]} Nbd7 {[%clk 01:33:05]}
{[%emt 00:00:19]} 12. Qf2 {[%clk 01:17:22]} {[%emt 00:06:39]} Rc8 {[%clk
01:29:50]} {[%emt 00:03:45]} 13. g4 {[%clk 01:16:11]} {[%emt 00:01:40]} Nc5
{[%clk 01:29:34]} {[%emt 00:00:46]} 14. g5 {[%clk 01:12:47]} {[%emt 00:03:54]}
Nfd7 {[%clk 01:29:08]} {[%emt 00:00:57]} 15. h4 {[%clk 01:09:33]} {[%emt
00:03:45]} Nb6 {[%clk 01:24:45]} {[%emt 00:04:52]} 16. Nd5 {[%clk 01:01:19]}
{[%emt 00:08:45]} Bxd5 {[%clk 01:19:02]} {[%emt 00:06:13]} 17. exd5 {[%clk
01:01:35]} {[%emt 00:00:14]} Nc4 {[%clk 01:16:43]} {[%emt 00:02:48]} 18. Bxc4
{[%clk 00:54:39]} {[%emt 00:07:26]} bxc4 {[%clk 01:16:35]} {[%emt 00:00:39]} 19.
Nxc5 {[%clk 00:54:54]} {[%emt 00:00:15]} dxc5 {[%clk 01:16:50]} {[%emt
00:00:15]} 20. Qd2 {[%clk 00:52:23]} {[%emt 00:03:01]} Bd6 {[%clk 01:13:53]}
{[%emt 00:03:27]} 21. Qc3 {[%clk 00:50:27]} {[%emt 00:02:27]} O-O {[%clk
01:13:51]} {[%emt 00:00:32]} 22. Qxc4 {[%clk 00:48:38]} {[%emt 00:02:19]} Qb7
{[%clk 01:03:08]} {[%emt 00:11:12]} 23. h5 {[%clk 00:45:54]} {[%emt 00:03:15]}
f5 {[%clk 01:01:49]} {[%emt 00:01:49]} 24. g6 {[%clk 00:41:34]} {[%emt
00:04:50]} h6 {[%clk 00:59:14]} {[%emt 00:03:05]} 25. Qb3 {[%clk 00:40:05]}
{[%emt 00:01:59]} Qxb3 {[%clk 00:58:14]} {[%emt 00:01:31]} 26. cxb3 {[%clk
00:38:32]} {[%emt 00:02:03]} c4 {[%clk 00:57:26]} {[%emt 00:01:18]} 27. bxc4
{[%clk 00:37:39]} {[%emt 00:01:23]} Rxc4 {[%clk 00:57:44]} {[%emt 00:00:13]} 28.
Rc1 {[%clk 00:37:53]} {[%emt 00:00:15]} Rb4 {[%clk 00:48:09]} {[%emt 00:10:04]}
29. Rc6 {[%clk 00:36:54]} {[%emt 00:01:29]} Be7 {[%clk 00:47:27]} {[%emt
00:01:11]} 30. Re6 {[%clk 00:34:02]} {[%emt 00:03:22]} Rb7 {[%clk 00:46:29]}
{[%emt 00:01:27]} 31. d6 {[%clk 00:32:28]} {[%emt 00:02:05]} Bf6 {[%clk
00:45:30]} {[%emt 00:01:28]} 32. Rh2 {[%clk 00:30:38]} {[%emt 00:02:22]} e4
{[%clk 00:39:58]} {[%emt 00:06:02]} 33. fxe4 {[%clk 00:30:29]} {[%emt
00:00:38]} fxe4 {[%clk 00:40:04]} {[%emt 00:00:24]} 34. Rf2 {[%clk 00:30:14]}
{[%emt 00:00:46]} Bg5 {[%clk 00:36:22]} {[%emt 00:04:12]} 35. Rxf8+ {[%clk
00:29:21]} Kxf8 {[%clk 00:36:22]} 36. Bc5 1-0

[Event "GX Alekhine Torneio Interno 2023"]
[Site "GXA, Portugal"]
[Date "????.??.??"]
[Round "3.1"]
[White "Corentin, Louis"]
[Black "Silva, Lourenco Santa Clara Co"]
[Result "1-0"]
[TimeControl "1h 30m +30s"]
[WhiteElo "2054"]
[BlackElo "1731"]

1. f4 {[%clk 01:30:55]} {[%emt 00:00:04]} d5 {[%clk 01:30:53]} {[%emt
00:00:08]} 2. Nf3 {[%clk 01:31:15]} {[%emt 00:00:10]} g6 {[%clk 01:31:17]}
{[%emt 00:00:06]} 3. g3 {[%clk 01:31:38]} {[%emt 00:00:06]} Bg7 {[%clk
01:31:42]} {[%emt 00:00:06]} 4. Bg2 {[%clk 01:32:03]} {[%emt 00:00:05]} Nf6
{[%clk 01:32:06]} {[%emt 00:00:06]} 5. d3 {[%clk 01:32:27]} {[%emt 00:00:06]}
O-O {[%clk 01:32:29]} {[%emt 00:00:07]} 6. O-O {[%clk 01:32:43]} {[%emt
00:00:13]} c5 {[%clk 01:32:55]} {[%emt 00:00:04]} 7. c3 {[%clk 01:33:04]}
{[%emt 00:00:09]} Nc6 {[%clk 01:33:18]} {[%emt 00:00:07]} 8. Na3 {[%clk
01:33:27]} {[%emt 00:00:08]} a6 {[%clk 01:30:45]} {[%emt 00:03:02]} 9. Ne5
{[%clk 01:25:41]} {[%emt 00:08:14]} e6 {[%clk 01:18:27]} {[%emt 00:12:50]} 10.
Nxc6 {[%clk 01:25:32]} {[%emt 00:00:39]} bxc6 {[%clk 01:18:49]} {[%emt
00:00:08]} 11. e4 {[%clk 01:25:51]} {[%emt 00:00:10]} Rb8 {[%clk 01:14:53]}
{[%emt 00:04:27]} 12. e5 {[%clk 01:18:01]} {[%emt 00:08:20]} Nd7 {[%clk
01:14:07]} {[%emt 00:01:16]} 13. Qe2 {[%clk 01:17:19]} {[%emt 00:01:11]} Re8
{[%clk 01:09:34]} {[%emt 00:05:04]} 14. Qf2 {[%clk 01:13:29]} {[%emt 00:04:19]}
a5 {[%clk 01:04:15]} {[%emt 00:05:50]} 15. Be3 {[%clk 01:02:51]} {[%emt
00:11:06]} Qe7 {[%clk 01:00:50]} {[%emt 00:03:56]} 16. Rac1 {[%clk 01:00:16]}
{[%emt 00:03:05]} Ba6 {[%clk 00:56:19]} {[%emt 00:05:01]} 17. Rfd1 {[%clk
01:00:03]} {[%emt 00:00:42]} Rec8 {[%clk 00:49:44]} {[%emt 00:07:05]} 18. Rc2
{[%clk 00:59:07]} {[%emt 00:01:27]} Rc7 {[%clk 00:46:05]} {[%emt 00:04:10]} 19.
d4 {[%clk 00:57:40]} {[%emt 00:01:57]} c4 {[%clk 00:42:37]} {[%emt 00:03:58]}
20. g4 {[%clk 00:56:46]} {[%emt 00:01:23]} Nb6 {[%clk 00:28:11]} {[%emt
00:14:56]} 21. f5 {[%clk 00:55:46]} {[%emt 00:01:30]} Qd8 {[%clk 00:27:08]}
{[%emt 00:01:34]} 22. f6 {[%clk 00:48:09]} {[%emt 00:08:07]} Bf8 {[%clk
00:22:49]} {[%emt 00:04:49]} 23. Rf1 {[%clk 00:45:54]} {[%emt 00:02:43]} Kh8
{[%clk 00:16:25]} {[%emt 00:06:55]} 24. Qh4 {[%clk 00:44:59]} {[%emt 00:01:24]}
Na4 {[%clk 00:14:00]} {[%emt 00:02:55]} 25. Rf3 {[%clk 00:43:34]} {[%emt
00:01:55]} Bxa3 {[%clk 00:14:24]} {[%emt 00:00:07]} 26. bxa3 {[%clk 00:43:40]}
{[%emt 00:00:24]} Rb1+ {[%clk 00:13:26]} {[%emt 00:01:28]} 27. Bf1 {[%clk
00:43:54]} {[%emt 00:00:14]} Qb8 {[%clk 00:13:49]} {[%emt 00:00:08]} 28. Rh3
{[%clk 00:43:05]} {[%emt 00:01:19]} Qg8 {[%clk 00:13:00]} {[%emt 00:01:20]} 29.
Bh6 {[%clk 00:43:27]} {[%emt 00:00:08]} Qe8 {[%clk 00:13:27]} {[%emt 00:00:03]}
30. Bg7+ {[%clk 00:43:50]} {[%emt 00:00:07]} Kg8 {[%clk 00:13:54]} {[%emt
00:00:02]} 31. Qxh7# {[%clk 00:44:12]} {[%emt 00:00:07]} 1-0

[Event "GX Alekhine Torneio Interno 2023"]
[Site "GXA, Portugal"]
[Date "????.??.??"]
[Round "3.2"]
[White "Curado, Manuel Joao Ferro"]
[Black "Gorgojo Freijo, Diego"]
[Result "0-1"]
[TimeControl "1h 30m +30s"]
[WhiteElo "1721"]
[BlackElo "1889"]

1. b4 {[%clk 01:30:08]} {[%emt 00:00:50]} d5 {[%clk 01:30:07]} {[%emt
00:00:53]} 2. Bb2 {[%clk 01:30:27]} {[%emt 00:00:11]} Nd7 {[%clk 01:28:48]}
{[%emt 00:01:49]} 3. Nf3 {[%clk 01:30:43]} {[%emt 00:00:14]} Ngf6 {[%clk
01:28:20]} {[%emt 00:00:58]} 4. e3 {[%clk 01:30:42]} {[%emt 00:00:31]} g6
{[%clk 01:20:56]} {[%emt 00:07:54]} 5. Be2 {[%clk 01:31:06]} {[%emt 00:00:07]}
Bg7 {[%clk 01:20:59]} {[%emt 00:00:26]} 6. O-O {[%clk 01:31:27]} {[%emt
00:00:09]} O-O {[%clk 01:21:11]} {[%emt 00:00:18]} 7. c4 {[%clk 01:25:46]}
{[%emt 00:06:10]} c6 {[%clk 01:09:58]} {[%emt 00:11:44]} 8. d4 {[%clk
01:17:08]} {[%emt 00:09:08]} Nb6 {[%clk 00:59:31]} {[%emt 00:10:57]} 9. Nbd2
{[%clk 01:13:29]} {[%emt 00:04:09]} h6 {[%clk 00:56:30]} {[%emt 00:03:31]} 10.
a3 {[%clk 00:59:01]} {[%emt 00:14:58]} Bf5 {[%clk 00:55:28]} {[%emt 00:01:32]}
11. Ne5 {[%clk 00:50:02]} {[%emt 00:09:28]} Ne4 {[%clk 00:49:08]} {[%emt
00:06:50]} 12. g4 {[%clk 00:37:29]} {[%emt 00:13:03]} Nxd2 {[%clk 00:38:04]}
{[%emt 00:11:34]} 13. Qxd2 {[%clk 00:33:48]} {[%emt 00:04:11]} Be6 {[%clk
00:37:05]} {[%emt 00:01:28]} 14. cxd5 {[%clk 00:29:58]} {[%emt 00:04:19]} cxd5
{[%clk 00:34:57]} {[%emt 00:02:39]} 15. Rac1 {[%clk 00:29:16]} {[%emt
00:01:12]} Bxe5 {[%clk 00:34:14]} {[%emt 00:01:13]} 16. dxe5 {[%clk 00:29:37]}
{[%emt 00:00:08]} Qd7 {[%clk 00:33:47]} {[%emt 00:00:57]} 17. h3 {[%clk
00:28:51]} {[%emt 00:01:47]} h5 {[%clk 00:33:17]} {[%emt 00:01:30]} 18. f3
{[%clk 00:28:10]} {[%emt 00:01:11]} hxg4 {[%clk 00:32:19]} {[%emt 00:01:28]} 19.
hxg4 {[%clk 00:27:34]} {[%emt 00:01:06]} Na4 {[%clk 00:27:44]} {[%emt
00:05:05]} 20. Bd4 {[%clk 00:27:08]} {[%emt 00:00:56]} Rfc8 {[%clk 00:22:10]}
{[%emt 00:06:04]} 21. Kg2 {[%clk 00:19:41]} {[%emt 00:07:57]} b5 {[%clk
00:19:15]} {[%emt 00:03:25]} 22. Rh1 {[%clk 00:18:29]} {[%emt 00:01:42]} Kg7
{[%clk 00:17:55]} {[%emt 00:01:51]} 23. f4 {[%emt 00:08:36]} Rxc1 24. Rxc1 f6
25. exf6+ exf6 26. g5 Nb6 27. Bxf6+ Kf8 28. Rh1 Nc4 29. Qd3 Qe8 30. Rh8+ Bg8 31.
Kf3 Qe4+ 32. Qxe4 dxe4+ 33. Kxe4 Nxa3 34. Bg4 Re8+ 35. Kf3 Nc4 36. Bd7 Rxe3+ 37.
Kg4 Nd6 38. Bc6 Nf5 39. Bf3 Rb3 40. Be5 {[%clk 00:10:23]} Rd3 {[%clk 00:17:20]}
0-1

[Event "GX Alekhine Torneio Interno 2023"]
[Site "GXA, Portugal"]
[Date "????.??.??"]
[Round "3.3"]
[White "Vedor, Bernardo Marques"]
[Black "Silva, Reinaldo Joao David Bat"]
[Result "1/2-1/2"]
[TimeControl "1h 30m +30s"]
[WhiteElo "1650"]
[BlackElo "1763"]

1. e4 {[%clk 01:30:56]} {[%emt 00:00:03]} c5 {[%clk 01:30:53]} {[%emt
00:00:08]} 2. Nf3 {[%clk 01:31:07]} {[%emt 00:00:18]} Nc6 {[%clk 01:31:15]}
{[%emt 00:00:07]} 3. d4 {[%clk 01:31:21]} {[%emt 00:00:16]} cxd4 {[%clk
01:31:35]} {[%emt 00:00:10]} 4. Nxd4 {[%clk 01:31:45]} {[%emt 00:00:07]} g6
{[%clk 01:31:58]} {[%emt 00:00:07]} 5. c4 {[%clk 01:31:25]} {[%emt 00:00:49]}
Nf6 {[%clk 01:32:17]} {[%emt 00:00:11]} 6. Nc3 {[%clk 01:31:26]} {[%emt
00:00:29]} d6 {[%clk 01:32:30]} {[%emt 00:00:17]} 7. Be2 {[%clk 01:30:38]}
{[%emt 00:01:17]} Bg7 {[%clk 01:32:52]} {[%emt 00:00:09]} 8. Be3 {[%clk
01:30:25]} {[%emt 00:00:42]} O-O {[%clk 01:32:46]} {[%emt 00:00:37]} 9. O-O
{[%clk 01:30:36]} {[%emt 00:00:19]} Nxd4 {[%clk 01:32:19]} {[%emt 00:00:58]} 10.
Bxd4 {[%clk 01:30:23]} {[%emt 00:00:42]} Be6 {[%clk 01:31:24]} {[%emt
00:01:25]} 11. Rc1 {[%clk 01:24:24]} {[%emt 00:06:29]} Qa5 {[%clk 01:27:37]}
{[%emt 00:04:18]} 12. f3 {[%clk 01:19:06]} {[%emt 00:05:48]} Rfc8 {[%clk
01:25:46]} {[%emt 00:02:20]} 13. b3 {[%clk 01:17:18]} {[%emt 00:02:17]} a6
{[%clk 01:17:09]} {[%emt 00:09:09]} 14. Qd2 {[%clk 01:13:33]} {[%emt 00:04:14]}
b5 {[%clk 01:12:20]} {[%emt 00:05:20]} 15. cxb5 {[%clk 01:12:01]} {[%emt
00:02:01]} axb5 {[%clk 01:12:02]} {[%emt 00:00:49]} 16. Rfd1 {[%clk 01:10:47]}
{[%emt 00:01:43]} b4 {[%clk 01:07:35]} {[%emt 00:04:58]} 17. Na4 {[%clk
01:10:02]} {[%emt 00:01:15]} Nd7 {[%clk 01:06:48]} {[%emt 00:01:17]} 18. Bxg7
{[%clk 01:08:40]} {[%emt 00:01:51]} Kxg7 {[%clk 01:07:09]} {[%emt 00:00:09]} 19.
Rc2 {[%emt 00:07:00]} Rc7 20. Rxc7 {[%clk 01:02:09]} Rc8 {[%clk 01:07:37]}
{[%emt 00:00:03]} 1/2-1/2